Workbook

Sheet Home
C2: Version 2.0-Beta
C3: CritchCorp Computers Ltd
C5: Market Place Price Calculator
E7: This worksheet will not work unless you have your security setting set correctly. If the buttons don't work, then go to: File --> Options --> Trust Center Click the Trust Center Settings Button Goto Macro Settings Select Enable VBA Macros... Tick the other two boxes if available Click OK Close Excel and reopen this file. This is an Beta Version of 2.0. The calculator works but the rest is still in development.
C19: © 2024 CritchCorp Computers Ltd
C20: CritchCorp Computers Ltd is a company registered in England And Wales, registered number: 05928822, registered address: 132-134 Great Ancoats Street, Manchester, M4 6DE (Official Documents Only)

Sheet TermsAndConditions (hidden)
A2: Use at your own risk at the moment. No guarantees apply. Merchantability of this software is not guaranteed.
A4: This software is in Beta testing. It is not for general release and as such no guarantees apply at all.
A6: This software is intended for use a huide only. It doe not gaurentee you will make a profit on every sale. It is to be used a guide only.
A7: It doe not take in to account other costs of business and other costs directly associated with each sale.
A8: There are other costs, such as Pay-Per-Click and other advertising fees that are not accounted for in this software.
A9: You must take these extra costs in to account yourself. If you can add a percentage to the unit costs, then you can easily do so.
A10: If you cannot then you must make provisions for these in some other way.
A11: By using this software you agree not hold us liable for any losses you may incude due to using the software.
A12: You also agree to not attempt to interfere with the code. Any attempt or actual changing of the code will invalidate the software and in such cases no warraty will be applied
A13: Further more, if you notice a glitch, or problem, then as a Beta tester, or a user of the Beta software, you are duty bound to report it ASAP.
A15: E&OE accepted
A18: CritchCorp Computers Ltd

Sheet Menu (hidden)
B2: CritchCorp Computers Ltd
B6: Main Menu
B32: © 2024 CritchCorp Computers Ltd
B33: =Home!C2 -> Version 2.0-Beta

Sheet Help (hidden)
A1: Work In Progress….
A19: To use the Calculator
A21: First Select the Market Place or App you want to use, from the buttons on the left (marked 1 on the picture). Selecting the correct one is important as it will set up some feautres for that particular app or marketplace. For example setting it to Shopify will set the per transaction fee to £0.25, it will exclude VAT from that fee and it will set the category fee to 3.9%, as this is the most charged by the payment processors. (you can amend any of these as well. More about that later). Once you have selected your marketplace or app, you can enter your item specifc category fee, add fee as required (Marked as 2). The Foriegn fee and Charity fee are eBay specific but you can use if they are needed for other things. One has VAT and one does not, depending on what you are charged. On to 3 on the diagram and you should enter your cost price for the item. That is the entire cost including the post and packing import duty, etc that you paid (or will pay). 4 - There are 2 of these, you should use only one usually. The Postage column is for Royal Mail postage which does not include any VAT. The other is for courier who charge VAT (Including Royal Mail Business accounts). Then in 5 enter the sale price, 6 the amount your customer pays for delivery and 7 the quantity (not bundels, as they are usually one item and costed as such, this will multiply the cost and sale price by this number. Now head on over to number 8 and see if you are losing or profiting.
A30: This doesn't take in to account any other costs. If you know what margin must be added in order to cover your other costs, make sure you add it to the unit cost price, or as one of the other percentages if available.
A32: There are 3 calculators on the right side. The first is a calculates how much VAT to add: Enter the cost with out VAT and it will tell you how much it is with VAT. The second will remove the VAT. The third is to help with multibuy discounts. Put your sales price in and then use the discount amount in the calculator to see if you still make a profit or not. The OTher box can be used fro your own discount amount, other than the fix boxes.

Sheet Maintenance (hidden)
A1: This is the Maintenance page, there is nothing here for you. Please return to the menu.
A7: Password Section
A8: Password1!
A9: 0
B34: © 2024 CritchCorp Computers Ltd

Sheet Options (hidden)
A6: Current Button Settings | D6: Shopify
A7: Fixed Order Fee | B7: 0.25 | D7: Fixed Order Fee | E7: 0.25 | F7: Variable Fee | G7: 3.9
A8: VAT on FOF | B8: 1 | D8: VAT on FOF | E8: 0
B10: 6.5 | D10: OnBuy
D11: Fixed Order Fee | E11: 0.25
D12: VAT on FOF | E12: 1
D14: eBay
D15: Fixed Order Fee | E15: 0.35
D16: VAT on FOF | E16: 1
D18: WooCommerce
D19: Fixed Order Fee | E19: 0.35 | F19: Variable Fee | G19: 3.9
D20: Vat on FOF | E20: 1
D22: Amazon
D23: Fixed Order Fee | E23: 0.25
D24: VAT on FOF | E24: 1
D26: Vinted
D27: Fixed Order Fee | E27: 0.5
D28: VAT on FOF | E28: 1
D30: Etsy
A31: © 2024 CritchCorp Computers Ltd | D31: Fixed Order Fee | E31: 0.2 | F31: Variable Fee | G31: 6.5
D32: VAT on FOF | E32: 1

Sheet Calculator (hidden)
Q1: =Home!C2 -> Version 2.0-Beta
C2: Quick Calculator for market places
E3: Inc VAT | F3: Inc VAT | G3: INC VAT | K3: No-VAT | P3: 0-VAT | Q3: Inc-VAT
C4: Description | D4: Quantity | E4: Sale Price | F4: Delivery | G4: Total sale | H4: VAT | I4: ebay fee | J4: promo fee | K4: Charity Fee | L4: foriegn fee | M4: Courier | N4: Unit Cost inc VAT | O4: Other cost | P4: POSTAGE | Q4: Total costs | R4: VAT Reclaim | S4: Profit/Loss
C5: With VAT | D5: 1 | E5: 6.5 | F5: 0 | G5: =(E5*D5+(F5)) -> 6.5 | H5: =G5-(G5/B8) -> 1.083333333 | I5: =IF(Options!B8=0,(G5*(B10/100)+Options!B7),((G5*(B10/100)+Options!B7)+((G5*(B10/100)+Options!B7)*(B8-1)))) -> 1.3842 | J5: =IF(Options!B8=0,(G5*(B11/100)), ((G5*(B11/100))+((G5*(B11/100))*(B8-1)))) -> 1.0842 | K5: =(G5*(B13/100)) -> 0 | L5: =IF(Options!B8=0,(G5*(B12/100)), ((G5*(B12/100))+((G5*(B12/100))*(B8-1)))) -> 0 | M5: =M6*B8 -> 3.468 | N5: =N6*B8 -> 0.264 | O5: =O6 -> 0 | P5: =P6 -> 0 | Q5: =SUM(H5:P5)-N5+(N5*D5) -> 7.283733333 | R5: =(I7)+(J7)+(L7)+(M7)+(O7)+((N7)*D5) -> 1.0334 | S5: =SUM((G5-Q5))+R5 -> 0.2496666667 | T5: Vat Registered - Use this
C6: No VAT | D6: =D5 -> 1 | E6: =E5/B8 -> 5.416666667 | F6: =F5/B8 -> 0 | G6: =(E6*D6+(F6)) -> 5.416666667 | H6: =G5-(G5/B8) -> 1.083333333 | I6: =(G5*(B10/100)+Options!B7) -> 1.1535 | J6: =(G5*(B11/100)) -> 0.9035 | K6: =(G5*(B13/100)) -> 0 | L6: =(G5*(B12/100)) -> 0 | M6: 2.89 | N6: 0.22 | P6: 0 | Q6: =SUM(I5:P5)-N5+(N5*D5) -> 6.2004 | S6: =SUM((G6-Q6)) -> -0.7837333333 | T6: Not VAT registered - Use This
G7: =SUM(G5-G6) -> 1.083333333 | I7: =I5-I6 -> 0.2307 | J7: =J5-J6 -> 0.1807 | L7: =L5-L6 -> 0 | M7: =M5-M6 -> 0.578 | N7: =N5-N6 -> 0.044 | Q7: =Q5-Q6 -> 1.083333333 | R7: =SUM(I7:J7,L7:O7) -> 1.0334
B8: =(B9/100)+1 -> 1.2
A9: VAT | B9: 20 | F9: Red in delivery value incates that there is a non zero value
A10: Category Fee % | B10: 13.9 | M10: Unit Cost VAT calculator
A11: Per Sale Ad Fee % | B11: 13.9 | M11: Qty | N11: Unit Cost | O11: VAT | P11: Total | Q11: Unit Total
A12: Foreign Sale % | B12: 0 | C12: Mostly for eBay but you use for anything that you need it for (Inc VAT) | M12: 8 | N12: 1 | O12: =(N12*M12)*(B8-1) -> 1.6 | P12: =(N12*M12)+O12 -> 9.6 | Q12: =N12*M12 -> 8
A13: Charity % (No VAT) | B13: 0 | C13: Mostly for eBay but you use for anything that you need it for (Exl VAT)
A14: Shopify | B14: 0 | M14: Unit Cost VAT Remover
A15: OnBuy | B15: 0 | M15: Qty | N15: Unit cost | O15: VAT | P15: Total
A16: eBay | B16: 0 | M16: 1 | N16: 6 | O16: =(N16*M16)-(N16*M16)/B8 -> 1 | P16: =(N16*M16)/B8 -> 5
A17: WooCommerce | B17: 0
A18: Amazon | B18: 1 | M18: Discount Calculator
A19: Vinted | B19: 0 | O19: Discount Percentage | U19: Other
A20: Etsy | B20: 0 | M20: Qty | N20: Sale price inc VAT | O20: 0.05 | P20: 0.1 | Q20: 0.15 | R20: 0.2 | S20: 0.25 | T20: 0.3 | U20: 35
A21: TikTok Shop | B21: 0 | M21: 1 | N21: 13.95 | O21: =N21-(N21*(5/100)) -> 13.2525 | P21: =$N$21-($N$21*(10/100)) -> 12.555 | Q21: =$N$21-($N$21*(15/100)) -> 11.8575 | R21: =$N$21-($N$21*(20/100)) -> 11.16 | S21: =$N$21-($N$21*(25/100)) -> 10.4625 | T21: =$N$21-($N$21*(30/100)) -> 9.765 | U21: =$N$21-($N$21*(U20/100)) -> 9.0675
A22: Facebook Marketplace | B22: 0
B34: © 2024 CritchCorp Computers Ltd
C41: S96 TV Stick
D42: 18.2 | E42: New Price 17.02

Sheet CostPrices (hidden)
E1: This sheet is being reconstructed. It is intended as a way to keep track of your cost prices and %'s for easy reference. It is may be useful to use it to autofil the calculator. | L1: This maybecome a drop-down list
A2: Supplier/Manufacturer | B2: Short Description | C2: UPC/EAN | D2: SKU | E2: Unit Cost Pice | F2: Unit RRP | G2: Unit Weight (Kg) | H2: Unit height (CM) | I2: Unit Width (CM) | J2: Unit Depth (CM) | K2: Shipping Weight (KG) | L2: Shipping box dimentions | M2: Shopify Price | N2: Shopify % | O2: OnBuy Price | P2: OnBuy Category Fee % | Q2: OnBuy Boost % | R2: eBay Rpice | S2: eBay Fee % | T2: Promoted Listing Simple Fee % | U2: Woo Price | V2: Woo Payment Processor % | W2: Amazon Price | X2: Amazon Category Fee % | Y2: Amazon Ad % | Z2: Vinted Price | AA2: Vinted category % | AB2: Etsy Price | AC2: Etsy Category %

Sheet eBay Fees (hidden)
A1: These are the market place fee. They are for reference only and up-to-date as of 20/07/2024. There is no gurentee of their correctness and are copied form the relevant website. You can usually tell the fee you are paying by looking at your listing.
A5: Final value fees by category - eBay | E5: Final Value Fees for Amazon | M5: OnBuy Fees from August 2024 | Q5: Etsy
A6: Category | B6: Category ID | C6: Final value fee % + 30p per order | E6: Referral Fee Schedule | M6: Fee Category | N6: Sales Fees | O6: Minimum Fee per Product | Q6: Fee Category | R6: Fee %
A7: Antiques | B7: #20081 | C7: 0.109 | E7: Fee categories | M7: Arts, Crafts & Sewing | N7: 0.15 | O7: 0.25 | Q7: All | R7: 0.06
A8: Art, except subcategories below: | B8: #550 | C8: 0.109 | E8: Referral fee (including the digital services tax) | M8: Baby & Toddler | N8: 8.00% of the total item price up to the value of £10.00 | O8: 0.25
A9: Art NFTs | B9: #262051 | C9: 0.05 | E9: Per-item minimum referral fee | N9: 15.00% on any portion of the total item price greater than £10.00
M10: Beer, Wine & Spirits | N10: 0.1 | O10: 0.25
A11: Baby | B11: #2984 | C11: 0.109 | E11: Amazon Device Accessories | M11: Books | N11: 0.15 | O11: 0.25
A12: Books, Comics & Magazines | B12: #267 | C12: 0.099 | E12: 0.459 | M12: Business, Office & Industrial Supplies | N12: 0.15 | O12: 0.25
A13: Business, Office & Industrial | B13: #12576 | C13: 0.119 | E13: 0.25 | M13: Car & Automotive Parts | N13: 15.00% of the total item price up to the value of £45.00 | O13: 0.25
A14: Cameras & Photography, except subcategories below: | B14: #625 | C14: 0.099 | E14: Automotive and Powersports | N14: 9.00% on any portion of the total item price greater than £45.00
A15: Camcorders | B15: #11724 | C15: 6.9% for the portion of the total amount of the sale up to £1,000 (calculated per item) | E15: • 15.3% for the portion of the total sales price up to £45.00 | M15: Clothing, Shoes & Accessories | N15: 0.15 | O15: 0.25
A16: Digital Cameras | B16: #31388 | C16: 3% for the portion of the total amount of the sale above £1,000 | E16: • 9.18% for any portion of the total sales price greater than £45.00 | M16: Consumer Electronics | N16: 0.07 | O16: 0.25
A17: Film Photography | B17: #69323 | E17: 0.25 | M17: DIY & Tools | N17: 0.13 | O17: 0.25
A18: Lenses & Filters | B18: #78997 | E18: Baby Products | M18: Electronic Accessories | N18: 15.00% of the total item price up to the value of £100.00 | O18: 0.25
E19: • 8.16% for products with a total sales price up to £10.00 | N19: 8.00% on any portion of the total item price greater than £100.00
A20: Clothes, Shoes & Accessories, except subcategories below: | B20: #11450 | C20: 0.119 | E20: • 15.3% for products with a total sales price greater than £10.00 | M20: Food & Drink | N20: 8.00% of the total item price up to the value of £10.00 | O20: 0.25
A21: Women's Bags & Handbags | B21: #169291 | C21: 12.9% for the portion of the total amount of the sale up to £800 (calculated per item) | E21: 0.25 | N21: 15.00% on any portion of the total item price greater than £10.00
C22: 7% for the portion of the total amount of the sale above £800 | E22: Backpacks and Handbags | M22: Furniture | N22: 15.00% of the total item price up to the value of £175.00 | O22: 0.25
E23: 0.153 | N23: 10.00% on any portion of the total item price greater than £175.00
A24: Men > Men's Shoes > Trainers | B24: #15709 | C24: 0.119 | E24: 0.25 | M24: Games Consoles | N24: 0.08 | O24: 0.25
A25: Women > Women's Shoes > Trainers | E25: Beauty, Health, and Personal Care* | M25: Health & Beauty | N25: 8.00% of the total item price up to the value of £10.00 | O25: 0.25
B26: #95672 | E26: • 8.16% for products with a total sales price up to £10.00 | N26: 15.00% on any portion of the total item price greater than £10.00
E27: • 15.3% for products with a total sales price greater than £10.00 | M27: Jewellery | N27: 20.00% of the total item price up to the value of £225.00 | O27: 0.25
C28: 7% if item selling price* is £100 or more | E28: 0.25 | N28: 5.00% on any portion of the total item price greater than £225.00
E29: Beer, Wine, and Spirits | M29: Large Appliances | N29: 0.07 | O29: 0.25
C30: *The item selling price excludes postage, and any other additional fees or taxes | E30: 0.102 | M30: Music, VHS, DVD | N30: 0.15 | O30: 0.25
A31: Coins | B31: #11116 | C31: 0.109 | E31: 0.25 | M31: Musical Instruments & DJ | N31: 0.12 | O31: 0.25
A32: Collectables, except subcategories below: | B32: #1 | C32: 0.109 | E32: Books | M32: Pet Supplies | N32: 0.15 | O32: 0.25
A33: Emerging NFTs | B33: #262050 | C33: 0.05 | E33: • 15.3% | M33: Power Tools | N33: 0.13 | O33: 0.25
A34: Non-Sport Trading Card NFTs | B34: #262052 | E34: • And a closing fee of £0.50 per item sold | M34: Small Appliances | N34: 0.15 | O34: 0.25
E35: Not applicable | M35: Software | N35: 0.15 | O35: 0.25
A36: Computers, Tablets & Networking, except subcategories below: | B36: #58058 | C36: 0.099 | E36: Business, Industrial, and Scientific Supplies | M36: Sports & Outdoors | N36: 0.15 | O36: 0.25
A37: Desktops & All-In-Ones | B37: #171957 | C37: 6.9% for the portion of the total amount of the sale up to £1,000 (calculated per item) | E37: 0.153 | M37: Toys & Games | N37: 0.15 | O37: 0.25
A38: Drives, Storage & Blank Media | B38: #165 | C38: 3% for the portion of the total amount of the sale above £1,000 | E38: 0.25 | M38: Video Games | N38: 0.15 | O38: 0.25
A39: Enterprise Networking, Servers | B39: #175698 | E39: Compact Appliances | M39: Watches | N39: 15.00% of the total item price up to the value of £225.00 | O39: 0.25
A40: Tablets & eBook Readers | B40: #171485 | E40: 0.153 | N40: 5.00% on any portion of the total item price greater than £225.00
A41: Laptops & Netbooks | B41: #175672 | E41: 0.25 | M41: Everything Else | N41: 0.15 | O41: 0.25
A42: Printers, Scanners & Supplies | B42: #171961 | E42: Clothing and Accessories | M42: *All fees are subject to VAT where applicable
E43: • For Prime selection with a total price above £40: 15.3% for products with a total price greater than £15 for the portion of the total price up to £40, and 7.14% for any portion of the total price greater than £40.
A44: Crafts | B44: #14339 | C44: 0.129 | E44: • For any selection with a total price up to £15: 8.16%
A45: Dolls & Bears | B45: #237 | C45: 0.109 | E45: • For any selection with a total price greater than £15: 15.3%
A46: Event Tickets | B46: #1305 | C46: 0.129 | E46: 0.25
A47: Films & TV, except subcategories below: | B47: #11232 | C47: 0.099 | E47: Commercial Electrical and Energy Supplies
A48: Film NFTs | B48: #262053 | C48: 0.05 | E48: 0.1224
E49: 0.25
A50: Garden & Patio | B50: #159912 | C50: 0.109 | E50: Computers
A51: Health & Beauty, except subcategories below: | B51: #26395 | C51: 0.109 | E51: 0.0714
A52: Hair Extensions & Wigs | B52: #182101 | C52: 0.119 | E52: 0.25
E53: Consumer Electronics
A54: Electronic Smoking, Parts & Accessories | B54: #183497 | C54: 0.129 | E54: 0.0714
E55: 0.25
A56: Holidays & Travel | B56: #3252 | C56: 7.9% for the portion of the total amount of the sale up to £650 (calculated per item) | E56: Cycling Accessories
C57: 3% for the portion of the total amount of the sale above £650 | E57: 0.0816
E58: 0.25
A59: Home, Furniture & DIY, except subcategories below: | B59: #11700 | C59: 11.9% for the portion of the total amount of the sale up to £500 (calculated per item) | E59: Electronic Accessories
C60: 7.9% for the portion of the total amount of the sale above £500 | E60: • 15.3% for the portion of the total sales price up to ₤100.00
E61: • 8.16% for any portion of the total sales price greater than ₤100.00
A62: Appliances | B62: #20710 | C62: 6.9% for the portion of the total amount of the sale up to £400 (calculated per item) | E62: 0.25
A63: DIY Tools & Workshop Equipment | B63: #631 | C63: 3% for the portion of the total amount of the sale above £400 | E63: Eyewear
E64: 0.153
A65: Power Strips & Surge Protectors | B65: #67779 | C65: 9.9% for the portion of the total amount of the sale up to £250 (calculated per item) | E65: 0.25
C66: 7.9% for the portion of the total amount of the sale above £250 | E66: Footwear
E67: 0.153
A68: Furniture | B68: #3197 | C68: 10.9% for the portion of the total amount of the sale up to £500 (calculated per item) | E68: 0.25
A69: Bath | B69: #26677 | C69: 7.9% for the portion of the total amount of the sale above £500 and up to £1,000 (calculated per item) | E69: Full-Size Appliances
A70: Other Home Plumbing & Fixtures | B70: #3191 | C70: 3% for the portion of the total amount of the sale above £1,000 | E70: 0.0714
E71: 0.25
A72: Jewellery & Watches, except subcategories below: | B72: #281 | C72: 12.9% for the portion of the total amount of the sale up to £450 (calculated per item) | E72: Furniture
C73: 2% for the portion of the total amount of the sale above £450 | E73: • 15.3% for the portion of the total sales price up to £175.00
E74: • 10.2% for any portion of the total sales price greater than £175.00
A75: Watches, Parts & Accessories | B75: #260324 | C75: 12.9% for the portion of the total amount of the sale up to £750 (calculated per item) | E75: 0.25
C76: 3% for the portion of the total amount of the sale above £750 | E76: Grocery and Gourmet
E77: • 8.16% for products with a total sales price up to £10.00
A78: Mobile Phones & Communication, except subcategories below: | B78: #15032 | C78: 0.099 | E78: • 15.3% for products with a total sales price greater than £10.00
A79: Mobile & Smart Phones | B79: #9355 | C79: 6.9% for the portion of the total amount of the sale up to £1,000 (calculated per item) | E79: Not applicable
C80: 3% for the portion of the total amount of the sale above £1,000 | E80: Handmade
E81: 0.1224
A82: Music, except subcategories below: | B82: #11233 | C82: 0.099 | E82: 0.25
A83: Music NFTs | B83: #262054 | C83: 0.05 | E83: Home and Kitchen
E84: 0.153
A85: Musical Instruments & DJ Equipment | B85: #619 | C85: 0.109 | E85: 0.25
A86: Pet Supplies | B86: #1281 | C86: 0.129 | E86: Jewelry
A87: Pottery, Ceramics & Glass | B87: #870 | C87: 0.109 | E87: • 20.4% for the portion of the total sales price up to £225.00
A88: Sound & Vision, except subcategories below: | B88: #293 | C88: 0.099 | E88: • 5.1% for any portion of the total sales price greater than £225.00
A89: DVD, Blu-ray & Home Cinema | B89: #32852 | C89: 6.9% for the portion of the total amount of the sale up to £1,000 (calculated per item) | E89: 0.25
A90: Headphones | B90: #112529 | C90: 3% for the portion of the total amount of the sale above £1,000 | E90: Lawn and Garden
A91: Home Audio & HiFi Separates | B91: #14969 | E91: 0.153
A92: Televisions | B92: #11071 | E92: 0.25
E93: Luggage
A94: Sporting Goods | B94: #888 | C94: 0.109 | E94: 0.153
A95: Sports Memorabilia, except subcategories below: | B95: #64482 | C95: 0.109 | E95: 0.25
A96: Sport Trading Card NFTs | B96: #262055 | C96: 0.05 | E96: Mattresses
E97: 0.153
A98: Stamps | B98: #260 | C98: 0.109 | E98: 0.25
A99: Toys & Games, except subcategories below: | B99: #220 | C99: 0.109 | E99: Music, Video, and DVD
A100: CCG NFTs | B100: #262056 | C100: 0.05 | E100: • 15.3%
E101: • And a closing fee of £0.50 per item sold
A102: Tents | B102: #117213 | C102: 10.9% for the portion of the total amount of the sale up to £250 (calculated per item) | E102: Not applicable
C103: 7.9% for the portion of the total amount of the sale above £250 | E103: Musical Instruments and AV Production
E104: 0.1224
A105: Vehicle Parts & Accessories, except subcategories below: | B105: #131090 | C105: 0.089 | E105: 0.25
A106: Tyres | B106: #179680 | C106: 7.9% for the portion of the total amount of the sale up to £250 (calculated per item) | E106: Office Products
A107: Tyres & Tubes | B107: #124313 | C107: 3% for the portion of the total amount of the sale above £250 | E107: 0.153
E108: 0.25
A109: GPS & Sat Nav Devices | B109: #139835 | C109: 6.9% for the portion of the total amount of the sale up to £400 (calculated per item) | E109: Pet Products
A110: Power Tools & Equipment | B110: #35000 | C110: 3% for the portion of the total amount of the sale above £400 | E110: 0.153
E111: 0.25
A112: Video Games & Consoles, except subcategories below: | B112: #1249 | C112: 0.099 | E112: Software
A113: Video Game Consoles | B113: #139971 | C113: 6.9% for the portion of the total amount of the sale up to £400 (calculated per item) | E113: • 15.3%
C114: 2% for the portion of the total amount of the sale above £400 | E114: • And a closing fee of £0.50 per item sold
E115: Not applicable
A116: Wholesale & Job Lots | B116: #40005 | C116: 0.129 | E116: Sports and Outdoors
A117: Everything Else, except subcategories below: | B117: #99 | C117: 0.129 | E117: 0.153
A118: Memorials & Funerals | B118: #88739 | C118: 0.119 | E118: 0.25
E119: Tyres
E120: 0.0714
E121: 0.25
E122: Tools and Home Improvement
E123: 0.1326
E124: 0.25
E125: Toys and Games
E126: 0.153
E127: 0.25
E128: Video Games - Games and Accessories
E129: • 15.3%
E130: • And a closing fee of £0.50 per item sold
E131: Not applicable
E132: Video Game Consoles
E133: • 8.16%
E134: • And a closing fee of £0.50 per item sold
E135: Not applicable
E136: Watches
E137: • 15.3% for the portion of the total sales price up to £225.00
E138: • 5.1% for any portion of the total sales price greater than £225.00
E139: 0.25
E140: Everything else
E141: 0.153
E142: 0.25
